fUSD/lending_fUSD_20240418
["ID","MTS","AMOUNT","RATE_DAILY","PERIOD"]
[322871496,1713445833105,-8401.83130879,0.00018128,2]
[322871497,1713445833140,-495.48279711,0.00018128,2]
[322871498,1713445833151,-6626.41834742,0.00018128,2]
[322871535,1713445837523,-963.33769722,0.00018128,2]
[322871539,1713445837549,-655.82000289,0.00018128,2]
[322871541,1713445837562,-3082.35843371,0.00018128,2]
[322871543,1713445837572,-419.1773,0.00018131,2]
[322871545,1713445837581,-753.48828471,0.00018131,2]
[322871548,1713445837591,-193.52558659,0.00018131,2]
[322871550,1713445837601,-317.42459681,0.00018131,2]
[322871551,1713445837611,-183.7301656,0.00018172,3]
[322871552,1713445837620,-263.13145596,0.00018172,2]
[322871553,1713445837630,-201.80210679,0.00018172,2]
[322871554,1713445837639,-10927.55619612,0.00018212,4]
[322871555,1713445837649,-2500.0,0.00018219,2]
[322871556,1713445837662,-286.52376977,0.00018221,2]
[322871557,1713445837671,-286.52376977,0.00018222,2]
[322871558,1713445837680,-286.52376977,0.00018222,2]
[322871559,1713445837690,-200.39776018,0.00018224,2]
[322871560,1713445837699,-215.83533507,0.00018224,2]
[322871561,1713445837709,-362.53757372,0.00018224,2]
[322871562,1713445837718,-780.61173373,0.00018224,2]
[322871563,1713445837727,-532.65235782,0.00018224,2]
[322871564,1713445837736,-433.26085632,0.00018225,2]
[322871565,1713445837746,-8059.80497886,0.00018226,2]
[322871566,1713445837758,-444.11719502,0.00018226,2]
[322871567,1713445837769,-1366.12143267,0.00018226,2]
[322871568,1713445837805,-663.56296875,0.00018226,2]
[322871569,1713445837814,-127.21741993,0.00018226,2]
[322871570,1713445837826,-1729.55783652,0.00018226,2]
[322871571,1713445837919,-8997.85481129,0.00018226,2]
[322871572,1713445837931,-1783.49281109,0.00018226,2]
[322871573,1713445838822,-13005.6300362,0.00018226,2]
[322871574,1713445838837,-7247.88125866,0.00018226,2]
[322871575,1713445838848,-2399.80100943,0.00018226,2]
[322871576,1713445838962,-130172.76415018,0.00018226,2]
[322871577,1713445838971,-703.9258045,0.00018226,2]
[322871578,1713445838981,-28277.7087833,0.00018226,2]
[322871579,1713445838990,-157.041822,0.00018228,2]
[322871580,1713445839000,-157.041822,0.00018228,2]
[322871581,1713445839008,-157.041822,0.00018228,2]
[322871582,1713445839018,-157.041822,0.00018228,2]
[322871583,1713445839027,-157.041822,0.00018228,2]
[322871584,1713445839036,-157.041822,0.00018228,2]
[322871585,1713445839045,-500.0,0.00018228,2]
[322871586,1713445839055,-1297.79891384,0.00018229,2]
[322871587,1713445839063,-470.17976458,0.00018229,2]
[322871588,1713445839072,-156.79584876,0.00018229,2]
[322871589,1713445839081,-155.0,0.00018229,2]
[322871590,1713445839091,-549.06795956,0.00018229,2]
[322871591,1713445839100,-2337.63597325,0.00018229,2]
[322871592,1713445839109,-374.74147786,0.00018229,2]
[322871593,1713445839118,-155.0,0.00018229,2]
[322871594,1713445839128,-157.041822,0.00018229,2]
[322871595,1713445839137,-157.041822,0.00018229,2]
[322871596,1713445839146,-157.041822,0.00018229,2]
[322871597,1713445839155,-157.041822,0.00018229,2]
[322871598,1713445839166,-157.041822,0.00018229,2]
[322871599,1713445839176,-157.041822,0.00018229,2]
[322871600,1713445839185,-166.54065765,0.0001823,2]
[322871601,1713445839194,-1838.90867311,0.0001823,2]
[322871602,1713445839204,-1584.80003227,0.0001823,2]
[322871603,1713445839214,-263.53476276,0.0001823,2]
[322871604,1713445839223,-155.0,0.0001823,2]
[322871605,1713445839232,-227.45761481,0.0001823,2]
[322871606,1713445839241,-173.56473147,0.0001823,2]
[322871607,1713445839250,-15959.44314877,0.0001823,2]
[322871608,1713445839260,-276.48419434,0.0001823,2]
[322871609,1713445839269,-157.041822,0.0001823,2]
[322871610,1713445839278,-157.041822,0.0001823,2]
[322871611,1713445839287,-157.041822,0.0001823,2]
[322871612,1713445839296,-157.041822,0.0001823,2]
[322871613,1713445839305,-157.041822,0.0001823,2]
[322871614,1713445839314,-500.0,0.0001823,2]
[322871615,1713445839323,-500.0,0.0001823,2]
[322871616,1713445839332,-500.0,0.0001823,2]
[322871617,1713445839341,-500.0,0.0001823,2]
[322871618,1713445839350,-502.0,0.00018231,2]
[322871619,1713445839359,-243.9503365,0.00018231,2]
[322871620,1713445839368,-206.9318143,0.00018231,2]
[322871621,1713445839376,-2018.81177111,0.00018231,2]
[322871622,1713445839386,-44438.01536252,0.00018231,2]
[322871623,1713445839397,-3438.4263264,0.00018231,2]
[322871624,1713445839410,-3219.72035,0.00018231,2]
[322871625,1713445839421,-785.92464769,0.00018231,2]
[322871626,1713445839432,-669.42707453,0.00018231,2]
[322871627,1713445839444,-52193.20091404,0.00018231,2]
[322871628,1713445840766,-302.5,0.00018231,2]
[322871629,1713445840779,-11507.27604648,0.00018231,2]
[322871630,1713445841849,-1520.46119726,0.00018231,2]
[322871631,1713445841928,-302.07,0.00018231,2]
[322871671,1713445843136,-16743.83204384,0.00018231,2]
[322871672,1713445843203,-40.74387591,0.00018231,2]
[322871673,1713445843554,-100534.18617426,0.00018231,2]
[322871674,1713445843577,-16879.57593726,0.00018231,2]
[322871676,1713445845724,-655.19974353,0.00018231,2]
[322871677,1713445845786,-2410.48199987,0.00018231,2]
[322871678,1713445845797,-14561.53245761,0.00018231,2]
[322871679,1713445845843,-829.99241677,0.00018231,2]
[322871680,1713445851604,288.14240339,0.00014656,2]
[322871681,1713445851721,407.96544692,0.00014656,2]
[322871682,1713445853432,151.0,0.00025233,120]
[322871683,1713445855649,1139.32272465,0.00014656,2]
[322871684,1713446061521,763.9,0.00015218,2]
[322871685,1713446091236,1040.08149497,0.00015218,2]
[322871686,1713446099529,151.0,0.0002477,120]
[322871687,1713446102235,3902.19,0.00017043,15]
[322871688,1713446112045,1040.08149497,0.00015218,2]
[322871689,1713446133811,1039.20288302,0.00015218,2]
[322871691,1713446318041,408.16405937,0.00015218,2]
[322871692,1713446319801,365.48582582,0.00015218,2]
[322871693,1713446338376,365.48582582,0.00015218,2]
[322871694,1713446338407,392.37923106,0.00015218,2]
[322871695,1713446357716,360.770095,0.00015218,2]
[322871696,1713446433139,8342.37,0.00015502,2]
[322871697,1713446534994,750.93,0.00014717,2]
[322871698,1713446730156,3658.3,0.00016667,15]
[322871699,1713446730355,3658.3,0.00019407,15]
[322871701,1713447024183,737.35,0.00014697,2]
[322871718,1713447031783,-200.82338812,0.00016438,2]
[322871719,1713447031793,-162.6958909,0.0001647,2]
[322871720,1713447031802,-2166.85,0.0001657,2]
[322871721,1713447031811,-250.0,0.0001657,2]
[322871722,1713447031821,-500.0,0.00016575,2]
[322871723,1713447031830,-3038.94,0.00016584,2]
[322871724,1713447031840,-4320.96,0.00016584,2]
[322871725,1713447031849,-461.66,0.00016589,2]
[322871726,1713447031858,-150.0,0.000166,2]
[322871727,1713447031868,-1340.14,0.00016609,2]
[322871728,1713447031877,-999.99,0.00016678,2]
[322871729,1713447031886,-156.52,0.00016945,2]
[322871730,1713447031899,-737.35,0.00016961,2]
[322871731,1713447031914,-1250.0,0.00017,2]
[322871732,1713447031924,-156.52,0.00017092,2]
[322871733,1713447031933,-300.0,0.00017122,2]
[322871734,1713447031943,-3640.989,0.00017221,2]
[322871735,1713447031953,-499.99,0.00017221,2]
[322871736,1713447031962,-622.12,0.00017221,2]
[322871737,1713447031972,-264.14,0.00017222,2]
[322871738,1713447031982,-156.52,0.00017239,2]
[322871739,1713447031992,-400.0,0.000173,6]
[322871740,1713447032001,-178.61,0.00017322,2]
[322871741,1713447032011,-156.52,0.00017386,2]
[322871742,1713447032020,-800.0,0.000174,6]
[322871743,1713447032030,-1200.0,0.000175,6]
[322871744,1713447032040,-156.52,0.00017533,2]
[322871745,1713447032050,-1600.0,0.000176,6]
[322871746,1713447032059,-156.52,0.0001768,2]
[322871747,1713447032069,-2000.0,0.000177,6]
[322871748,1713447032078,-400.0,0.000178,6]
[322871749,1713447032088,-156.52,0.00017828,2]
[322871751,1713447032097,-150.0,0.00017843,2]
[322871752,1713447032106,-150.0,0.00017843,2]
[322871753,1713447032116,-400.0,0.000179,6]
[322871754,1713447032125,-7127.3631,0.00017926,2]
[322871755,1713447032135,-6604.00303668,0.0001795,2]
[322871756,1713447032145,-28014.92792497,0.00017957,2]
[322871757,1713447032160,-2500.0,0.00017967,2]
[322871760,1713447032170,-110.24948922,0.00017967,2]
[322871761,1713447032183,-616.98338432,0.00017967,2]
[322871762,1713447032205,-589.1351042,0.00017967,2]
[322871763,1713447032304,-2497.739448,0.00017967,2]
[322871764,1713447032315,-450.0,0.00017967,2]
[322871765,1713447032326,-455.94522447,0.00017967,2]
[322871766,1713447032353,-408.75323981,0.00017967,2]
[322871767,1713447032363,-547.43728168,0.00017967,2]
[322871768,1713447032425,-3472.0184547,0.00017967,2]
[322871769,1713447032436,-5336.33133191,0.00017967,2]
[322871770,1713447032448,-7852.47655692,0.00017967,2]
[322871771,1713447032457,-1474.16348733,0.00018,2]
[322871772,1713447032466,-1004.19508164,0.00018019,2]
[322871773,1713447032475,-9663.55521941,0.00018026,2]
[322871774,1713447032486,-7096.73958795,0.00018026,2]
[322871775,1713447032497,-7839.87933248,0.00018026,2]
[322871776,1713447032508,-1550.0,0.00018026,2]
[322871777,1713447032640,-1712.57125797,0.00018026,2]
[322871778,1713447032657,-381.72189775,0.00018026,2]
[322871779,1713447032669,-24297.730314,0.00018026,2]
[322871846,1713447038427,-1000.0,0.00017321,2]
[322871847,1713447038437,-7796.02349044,0.00018026,2]
[322871848,1713447038446,-549.35052,0.0001805,2]
[322871849,1713447038456,-3091.891,0.00018067,2]
[322871850,1713447038465,-1477.493,0.00018067,2]
[322871851,1713447038474,-2453.959,0.00018067,2]
[322871852,1713447038483,-151.174,0.00018067,2]
[322871853,1713447038493,-400.981,0.00018067,2]
[322871854,1713447038502,-217.0,0.00018067,2]
[322871855,1713447038511,-1646.083,0.00018067,2]
[322871856,1713447038521,-151.043,0.00018067,2]
[322871857,1713447038531,-446.206,0.00018067,2]
[322871858,1713447038539,-1142.948,0.00018067,2]
[322871859,1713447038549,-356.891,0.00018067,2]
[322871860,1713447038559,-126.73617651,0.00018067,2]
[322871861,1713447038675,-14070.88559999,0.00018067,2]
[322871862,1713447038687,-7214.50036956,0.00018067,2]
[322871863,1713447038698,-9500.929818,0.00018067,2]
[322871864,1713447038909,-6206.46277577,0.00018067,2]
[322871865,1713447038922,-541.48526017,0.00018067,2]
[322871866,1713447038931,-5725.0,0.00018067,2]
[322871867,1713447038941,-1414.19069665,0.00018067,2]
[322871868,1713447038952,-4474.80930335,0.00018067,2]
[322871869,1713447038961,-610.41669568,0.00018067,2]
[322871870,1713447038972,-361.40330432,0.00018067,2]
[322871871,1713447038981,-2703.0,0.00018067,2]
[322871872,1713447038990,-541.0,0.00018067,2]
[322871873,1713447039000,-1218.0,0.00018067,2]
[322871874,1713447039009,-1357.461,0.00018067,2]
[322871875,1713447039019,-859.50001818,0.00018067,2]
[322871876,1713447039030,-194.49998182,0.00018067,2]
[322871877,1713447039040,-806.0,0.00018067,2]
[322871878,1713447039049,-436.0,0.00018067,2]
[322871879,1713447039058,-2091.917,0.00018067,2]
[322871880,1713447039067,-611.329,0.00018067,2]
[322871881,1713447039076,-258.585,0.00018067,2]
[322871882,1713447039085,-1263.0,0.000181,2]
[322871883,1713447039095,-155.0,0.00018124,2]
[322871884,1713447039105,-155.43717062,0.00018124,2]
[322871885,1713447039114,-245.74198375,0.00018124,2]
[322871886,1713447039124,-3637.15386381,0.00018126,2]
[322871887,1713447039137,-13827.42220461,0.00018126,2]
[322871888,1713447040546,-477.64222405,0.00018126,2]
[322871889,1713447040558,-3245.80301814,0.00018126,2]
[322871890,1713447040642,-476.2010242,0.00018126,2]
[322871891,1713447040775,-12511.3728,0.00018126,2]
[322871892,1713447040786,-478.10757856,0.00018126,2]
[322871893,1713447040797,-681.33262632,0.00018126,2]
[322871933,1713447042923,-1004.98186152,0.00018126,2]
[322871944,1713447043484,-698.35,0.00018126,2]
[322871945,1713447043495,-1251.07962492,0.00018126,2]
[322871946,1713447043621,-806.3099995,0.00018126,2]
[322871947,1713447043631,-741.51582583,0.00018126,2]
[322871948,1713447043693,-30267.65390093,0.00018126,2]
[322871949,1713447043704,-6071.2,0.00018126,2]
[322871950,1713447044629,-441.10153763,0.00018126,2]
[322871951,1713447044644,-709.03983979,0.00018126,2]
[322871952,1713447044656,-301.60400004,0.00018126,2]
[322871953,1713447044667,-1936.74807015,0.00018126,2]
[322871954,1713447044676,-162.6958909,0.00018129,2]
[322871955,1713447044685,-2515.03025669,0.00018132,2]
[322871956,1713447044694,-2058.6887,0.00018132,2]
[322871957,1713447044703,-217.98442224,0.00018135,3]
[322871958,1713447044712,-482.0,0.000182,2]
[322871959,1713447044721,-761.55332046,0.0001821,3]
[322871960,1713447044730,-150.24,0.00018221,2]
[322871961,1713447044740,-189.09338294,0.00018221,2]
[322871962,1713447044749,-189.09338294,0.00018222,2]
[322871963,1713447044759,-189.09338294,0.00018222,2]
[322871964,1713447044768,-2748.8788718,0.00018223,2]
[322871965,1713447044777,-23169.2194428,0.00018223,2]
[322871966,1713447044786,-33359.4551899,0.00018223,2]
[322871967,1713447044795,-2208.5898265,0.00018223,2]
[322871968,1713447044804,-5276.6929697,0.00018223,2]
[322871969,1713447044814,-172.9271548,0.00018223,2]
[322871970,1713447044823,-893.34855082,0.00018228,2]
[322871971,1713447044832,-2590.53055748,0.00018228,2]
[322871972,1713447044841,-155.0,0.00018228,2]
[322871973,1713447044850,-155.31944584,0.00018228,2]
[322871974,1713447044860,-155.0,0.00018228,2]
[322871975,1713447044869,-355.06412206,0.00018228,2]
[322871976,1713447044878,-7115.56486482,0.00018229,2]
[322871977,1713447044887,-1780.77323526,0.00018229,2]
[322871978,1713447044897,-157.041822,0.00018229,2]
[322871979,1713447044907,-157.041822,0.00018229,2]
[322871980,1713447044917,-157.041822,0.00018229,2]
[322871981,1713447044927,-157.041822,0.00018229,2]
[322871982,1713447044936,-157.041822,0.00018229,2]
[322871983,1713447044946,-157.041822,0.00018229,2]
[322871984,1713447044955,-157.041822,0.00018229,2]
[322871985,1713447044964,-157.041822,0.00018229,2]
[322871986,1713447044973,-157.041822,0.00018229,2]
[322871987,1713447044983,-157.041822,0.00018229,2]
[322871988,1713447044992,-157.041822,0.00018229,2]
[322871989,1713447045001,-157.041822,0.00018229,2]
[322871990,1713447045011,-157.041822,0.00018229,2]
[322871991,1713447045021,-157.041822,0.00018229,2]
[322871992,1713447045030,-157.041822,0.00018229,2]
[322871993,1713447045039,-273.041822,0.00018229,2]
[322871994,1713447045049,-239.8631436,0.0001823,2]
[322871995,1713447045058,-101355.11336123,0.0001823,2]
[322871996,1713447045068,-224.05769484,0.0001823,2]
[322871997,1713447045077,-529.0,0.00018231,2]
[322871998,1713447045087,-195.1602692,0.00018231,2]
[322871999,1713447045096,-170409.62509963,0.00018231,2]
[322872003,1713447047500,-1550.0,0.00018067,2]
[322872004,1713447047547,-375.93228978,0.00018067,2]
[322872005,1713447047559,-517.06771022,0.00018067,2]
[322872006,1713447047568,-13668.41493635,0.00018231,2]
[322872014,1713447206296,3201.01,0.00017367,15]
[322872035,1713447379402,-645.57179099,0.00016337,2]
[322872036,1713447379423,-162.03551152,0.00016338,2]
[322872038,1713447381825,1192.39269749,0.00016336,2]
[322872039,1713447381847,790.66009366,0.00016336,2]
[322872041,1713447456674,1209.33990634,0.00016437,2]
[322872042,1713447456698,2000.0,0.00016437,2]
[322872043,1713447456726,2000.0,0.00016437,2]
[322872044,1713447456749,2000.0,0.00016437,2]
[322872045,1713447456772,2000.0,0.00016437,2]
[322872046,1713447456796,2000.0,0.00016437,2]
[322872047,1713447456820,2000.0,0.00016437,2]
[322872048,1713447456845,2000.0,0.00016437,2]
[322872049,1713447456868,2000.0,0.00016437,2]
[322872050,1713447456889,2000.0,0.00016437,2]
[322872051,1713447456911,218.79777394,0.00016437,2]
[322872053,1713447525592,1781.20222606,0.00016437,4]
[322872054,1713447525626,2000.0,0.00016437,4]
[322872055,1713447525650,992.52980358,0.00016437,4]
[322872063,1713447661186,711.85,0.00015015,2]
[322872064,1713447694988,295.62019642,0.00015015,2]
[322872065,1713447695008,596.17670676,0.00015015,2]
[322872067,1713447878328,155.0,0.00016437,2]
[322872068,1713447883699,363.53802358,0.00016437,2]
[322872069,1713447883730,155.0,0.00016437,2]
[322872071,1713447927090,3000.94,0.00016864,15]
[322872072,1713447945916,-320.19796154,0.00016438,2]
[322872073,1713447945937,-186.78,0.00016863,2]
[322872074,1713447945959,-1493.02203846,0.00016864,2]
[322872075,1713447948439,-583.90796154,0.00016864,2]
[322872076,1713447948461,-718.12,0.00016872,2]
[322872078,1713448106211,-217.98442223,0.000169,2]
[322872079,1713448106233,-8046.63165066,0.000169,2]
[322872080,1713448106254,-1735.38392711,0.000169,2]
[322872081,1713448108303,-696.72122503,0.000169,2]
[322872082,1713448108324,-328.0,0.00016901,2]
[322872083,1713448108345,-558.95,0.00016902,2]
[322872084,1713448108366,-169.92,0.00016904,2]
[322872085,1713448108387,-150.0,0.00016904,2]
[322872086,1713448108414,-500.0,0.00016957,2]
[322872087,1713448108442,-7596.40877497,0.00017,2]
[322872088,1713448109501,-156.12821536,0.00017,2]
[322872089,1713448109524,-9843.87178464,0.00017,2]
[322872090,1713448111465,-10000.0,0.00017,2]
[322872091,1713448114019,-10000.0,0.00017,2]
[322872092,1713448115278,-10000.0,0.00017,2]
[322872093,1713448116826,-10000.0,0.00017,2]
[322872094,1713448118086,-10000.0,0.00017,2]
[322872095,1713448119932,-10000.0,0.00017,2]
[322872096,1713448121210,-10000.0,0.00017,2]
[322872097,1713448123206,-10000.0,0.00017,2]
[322872098,1713448125619,-10000.0,0.00017,2]
[322872099,1713448126999,-10000.0,0.00017,2]
[322872100,1713448128695,-10000.0,0.00017,2]
[322872101,1713448130509,-10000.0,0.00017,2]
[322872102,1713448132616,-10000.0,0.00017,2]
[322872103,1713448135453,-10000.0,0.00017,2]
[322872104,1713448136997,-10000.0,0.00017,2]
[322872105,1713448138717,-10000.0,0.00017,2]
[322872106,1713448140404,-10000.0,0.00017,2]
[322872107,1713448142631,-10000.0,0.00017,2]
[322872108,1713448152028,-4400.0,0.00017,2]
[322872109,1713448166606,697.97203846,0.00015157,2]
[322872110,1713448166631,1.34796154,0.00015157,2]
[322872122,1713448233196,-217.98442223,0.000169,2]
[322872123,1713448233205,-1516.47957777,0.000169,2]
[322872124,1713448233263,-496.29675969,0.000169,2]
[322872125,1713448233275,-815.69497776,0.000169,2]
[322872126,1713448233287,-408.63640166,0.000169,2]
[322872127,1713448233299,-2127.31338356,0.000169,2]
[322872128,1713448233309,-1621.40343476,0.000169,2]
[322872129,1713448233318,-1982.32751683,0.00017,2]
[322872130,1713448233630,-330.79,0.00017,2]
[322872131,1713448233780,-1129.24535294,0.00017,2]
[322872132,1713448233809,-42908.47554217,0.00017,2]
[322872133,1713448233820,-670.78694448,0.00017,2]
[322872134,1713448233832,-315.0,0.00017,2]
[322872135,1713448233844,-324.10000261,0.00017,2]
[322872136,1713448233856,-404.21478702,0.00017,2]
[322872170,1713448238119,-822.23,0.0001699,3]
[322872171,1713448238129,-9528.35593086,0.00017,2]
[322872172,1713448238225,-3140.10265864,0.00017,2]
[322872173,1713448238245,-9666.67405326,0.00017,2]
[322872181,1713448239433,200.0,0.000166,6]
[322872194,1713448240429,-405.58550021,0.00017,2]
[322872195,1713448240440,-962.0632201,0.00017,2]
[322872196,1713448240517,-164781.97771069,0.00017,2]
[322872197,1713448240529,-60825.3448232,0.00017,2]
[322872198,1713448240568,-3258.43511445,0.00017,2]
[322872199,1713448240580,-918.39045222,0.00017,2]
[322872252,1713448241503,500.0,0.000167,6]
[322872301,1713448244967,-453.0,0.00017,2]
[322872302,1713448245005,-1337.7616998,0.00017,2]
[322872303,1713448245149,800.0,0.000168,6]
[322872304,1713448245162,-282.51067521,0.00017,2]
[322872305,1713448245174,-292.00081544,0.00017,2]
[322872306,1713448245216,-3977.688,0.00017,2]
[322872307,1713448245254,-11136.35907897,0.00017,2]
[322872308,1713448245266,-4050.0,0.00017,2]
[322872318,1713448246683,1100.0,0.000169,6]
[322872319,1713448247503,-100202.674041,0.00017,2]
[322872320,1713448247516,-107771.2299473,0.00017,2]
[322872321,1713448247527,-6101.00000004,0.00017,2]
[322872322,1713448247578,-187333.05151531,0.00017,2]
[322872323,1713448247590,-434.286,0.00017,2]
[322872324,1713448247636,-32250.0,0.00017,2]
[322872325,1713448247669,-22277.26836642,0.00017,2]
[322872326,1713448247681,-124640.00000003,0.00017,2]
[322872329,1713448291907,437.94043748,0.000168,2]
[322872330,1713448302092,1300.07738684,0.00016148,2]
[322872331,1713448304694,260.63421414,0.00016732,3]
[322872332,1713448304715,1739.36578586,0.00016732,3]
[322872334,1713448334997,260.63421414,0.00016649,2]
[322872335,1713448335020,739.36578586,0.00016649,2]
[322872338,1713448348219,1260.63421414,0.00016667,2]
[322872339,1713448348241,1490.36578586,0.00016667,2]
[322872342,1713448365497,509.63421414,0.00016375,2]
[322872343,1713448365518,117.70578586,0.00016375,2]
[322872344,1713448375403,306.02,0.00016497,2]
[322872345,1713448375630,306.02,0.00016543,2]
[322872346,1713448375986,306.02,0.00016588,2]
[322872347,1713448376150,306.02,0.00016633,2]
[322872348,1713448376386,306.02,0.00016678,2]
[322872349,1713448376699,306.02,0.00016724,2]
[322872350,1713448376845,46.17421414,0.00016769,2]
[322872351,1713448376867,259.84578586,0.00016769,2]
[322872352,1713448377078,306.02,0.00016814,2]
[322872353,1713448377487,306.02,0.00016859,2]
[322872355,1713448409439,2813.38,0.0001615,15]
[322872356,1713448409981,2813.38,0.0001889,15]
[322872357,1713448419589,500.0,0.00016115,3]
[322872358,1713448434018,628.11421414,0.00016115,2]
[322872359,1713448434040,1524.64578586,0.00016115,2]
[322872360,1713448440866,257.8,0.00016083,2]
[322872362,1713448455902,217.55421414,0.00016099,2]
[322872363,1713448455923,282.44578586,0.00016099,2]
[322872364,1713448456009,247.08673333,0.00016438,2]
[322872369,1713448494668,150.0,0.00016099,2]
[322872370,1713448509548,1320.46748081,0.00016789,2]
[322872372,1713448558320,730.28526966,0.00016438,2]
[322872373,1713448558342,2000.0,0.00016438,2]
[322872374,1713448558362,2000.0,0.00016438,2]
[322872375,1713448558383,2000.0,0.00016438,2]
[322872376,1713448558404,2000.0,0.00016438,2]
[322872377,1713448558423,2000.0,0.00016438,2]
[322872378,1713448558444,2000.0,0.00016438,2]
[322872379,1713448558469,2000.0,0.00016438,2]
[322872380,1713448558489,2000.0,0.00016438,2]
[322872381,1713448558511,2000.0,0.00016438,2]
[322872382,1713448558532,2000.0,0.00016438,2]
[322872385,1713448575523,151.0,0.00024295,30]
[322872386,1713448575569,151.0,0.00023809,120]
[322872387,1713448795079,150.0,0.00013961,2]
[322872388,1713448795099,150.0,0.00013961,2]
[322872389,1713448795119,150.0,0.00013961,2]
[322872390,1713448795143,150.0,0.00013961,2]
[322872391,1713448795163,98.49,0.00013961,2]
[322872394,1713448930009,299.83154662,0.00015332,3]
[322872395,1713448930035,695.41845338,0.00015332,3]
[322872396,1713448930657,313.67,0.00015332,2]
[322872397,1713448952708,1000.49578194,0.00015,2]
[322872414,1713448978269,2461.7,0.0001611,15]
[322872415,1713448978638,2461.7,0.00018849,15]
[322872420,1713448982472,151.0,0.00024311,30]
[322872421,1713448982529,151.0,0.00023825,120]
[322872438,1713449038590,1434.84,0.00015323,2]
[322872450,1713449121151,500.0,0.00015319,2]
[322872452,1713449146029,438.29,0.00015319,2]
[322872456,1713449171306,200.0,0.00015319,2]
[322872457,1713449176470,4124.07,0.00015326,2]
[322872459,1713449189139,4005.0,0.000282,120]
[322872460,1713449195916,1646.659651,0.00015469,2]
[322872462,1713449228865,250.0,0.00015382,2]
[322872464,1713449238602,151.0,0.00024071,120]
[322872473,1713449273059,16148.78,0.00015404,2]
[322872474,1713449312668,800.0,0.00015476,2]
[322872475,1713449341848,687.83,0.00013568,2]
[322872476,1713449351906,162.54969345,0.0001544,2]
[322872477,1713449369105,-155.0,0.00015537,2]
[322872478,1713449369126,-339.39387591,0.00015538,2]
[322872512,1713449432254,-155.0,0.00015536,2]
[322872513,1713449432264,-155.0,0.00015536,2]
[322872514,1713449432274,-2358.50142136,0.00015536,2]
[322872515,1713449432284,-155.0,0.00015537,2]
[322872516,1713449432293,-294.89165048,0.00015537,2]
[322872517,1713449432305,-68.6463731,0.00015537,2]
[322872518,1713449432316,-1457.14262059,0.00015538,2]
[322872519,1713449432326,-617.15987519,0.00015539,2]
[322872520,1713449432335,-150.0,0.0001554,2]
[322872521,1713449432344,-150.0,0.0001554,2]
[322872522,1713449432354,-150.0,0.0001554,2]
[322872523,1713449432363,-19428.13768028,0.00015541,2]
[322872524,1713449432372,-5135.35720276,0.0001572,2]
[322872525,1713449432385,-1738.0,0.0001572,2]
[322872526,1713449432439,-4878.81624473,0.0001572,2]
[322872527,1713449432476,-569.99999994,0.0001572,2]
[322872528,1713449432489,-12716.8223915,0.0001572,2]
[322872529,1713449432499,-2030.31637735,0.00015721,2]
[322872530,1713449432510,-184.72362265,0.00015721,2]
[322872531,1713449432521,-167.43,0.00015831,2]
[322872532,1713449432530,-687.83,0.00015832,2]
[322872533,1713449432540,-4975.77,0.00015832,2]
[322872534,1713449432550,-200.0,0.0001584,2]
[322872535,1713449432558,-168.31,0.0001586,2]
[322872536,1713449432570,-499.99,0.00015904,2]
[322872537,1713449432579,-168.31,0.00015904,2]
[322872538,1713449432588,-168.31,0.00015947,2]
[322872539,1713449432597,-168.31,0.00015991,2]
[322872540,1713449432606,-168.31,0.00016034,2]
[322872541,1713449432615,-4682.2,0.00016038,2]
[322872542,1713449432625,-3163.11291365,0.00016051,2]
[322872543,1713449432634,-168.31,0.00016078,2]
[322872544,1713449432643,-168.31,0.00016121,2]